[Event "Budapest Chess Festival 2024"]
[Site "Budapest"]
[Date "2024.05.27"]
[Round "5.12"]
[White "Arhan, Chethan Anand"]
[Black "Szpar, Milosz"]
[Result "1-0"]
[ECO "C11"]
[WhiteElo "2366"]
[BlackElo "2512"]
[Annotator "RC"]
[PlyCount "173"]
[EventDate "2024.05.20"]
[EventType "swiss"]
[EventCountry "HUN"]
[SourceTitle "playchess.com"]
[Source "ChessBase"]
[SourceQuality "1"]
[TimeControl "40/5400+30:1800+30"]

1. e4 {[%emt 0:00:34]} e6 {[%emt 0:01:02]} 2. d4 {[%emt 0:00:05]} d5 {[%emt 0:00:06]} 3. Nc3 {[%emt 0:00:03]} Nf6 {[%emt 0:01:17]} 4. e5 {[%emt 0:00:05]} Nfd7 {[%emt 0:00:03]} 5. f4 {[%emt 0:00:04]} c5 {[%emt 0:00:06]} 6. Nf3 {[%emt 0:00:04]} Nc6 {[%emt 0:00:30]} 7. Be3 {[%emt 0:00:06]} Be7 {[%emt 0:00:51]} 8. Qd2 {[%emt 0:00:13]} a6 {[%emt 0:00:06]} 9. Be2 {[%emt 0:00:15]} b5 {[%emt 0:00:30]} 10. O-O {[%emt 0:01:10]} O-O {[%emt 0:03:34]} 11. a3 {[%emt 0:05:38]} Qc7 {[%emt 0:01:16]} 12. dxc5 {[%emt 0:07:57]} Nxc5 {[%emt 0:04:26]} 13. Nd4 {[%emt 0:00:49]} Bb7 {[%emt 0:08:36]} 14. Nxc6 {[%emt 0:01:45]} Qxc6 {[%emt 0:16:06]} 15. Bd4 {[%emt 0:02:20]} Rad8 {[%emt 0:11:37]} 16. Qe3 {[%emt 0:03:10]} Ne4 {[%emt 0:15:33]} 17. Nxe4 {[%emt 0:01:49]} dxe4 {[%emt 0:00:04]} 18. c3 {[%emt 0:00:29]} Rd7 {[%emt 0:07:10]} 19. Rae1 {[%emt 0:22:38]} Rc8 {[%emt 0:04:35]} 20. Bd1 {[%emt 0:06:31]} a5 {[%emt 0:00:39]} 21. f5 {[%emt 0:12:02]} g6 {[%emt 0:03:26]} 22. fxe6 {[%emt 0:02:06]} Qxe6 {[%emt 0:01:07]} 23. Qg3 {[%emt 0:01:50]} Bd5 {[%emt 0:05:30]} 24. Bg4 {[%emt 0:00:20]} Qc6 {[%emt 0:00:04]} 25. e6 {[%emt 0:01:01]} Bxe6 {[%emt 0:01:59]} 26. Qe5 {[%emt 0:00:06]} Rxd4 {[%emt 0:00:26]} 27. Bxe6 {[%emt 0:00:10]} Qxe6 {[%emt 0:01:23]} 28. Qxe6 {[%emt 0:00:08]} fxe6 {[%emt 0:00:06]} 29. cxd4 {[%emt 0:00:02]} Rc4 {[%emt 0:02:04]} 30. Rxe4 {[%emt 0:00:39]} Bc5 {[%emt 0:00:22]} 31. Kh1 {[%emt 0:06:28]} Rxd4 {[%emt 0:00:13]} 32. Rxe6 {[%emt 0:01:15]} Rd2 {[%emt 0:03:20]} 33. Re5 {[%emt 0:00:25]} Rc2 {[%emt 0:00:14]} 34. b4 {[%emt 0:17:48]} axb4 {[%emt 0:00:26]} 35. axb4 {[%emt 0:00:03]} Bxb4 {[%emt 0:00:24]} 36. Rxb5 {[%emt 0:00:04]} Be7 {[%emt 0:01:20]} 37. Re1 {[%emt 0:00:04]} Rc7 {[%emt 0:00:28]} 38. g3 {[%emt 0:00:32]} Kg7 {[%emt 0:00:10]} 39. Reb1 {[%emt 0:01:41]} Rc2 {[%emt 0:00:45]} 40. R5b2 {[%emt 0:00:00]} Rc6 {[%emt 0:00:00]} 41. Rb7 {[%emt 0:02:50]} Re6 {[%emt 0:00:56]} 42. Kg2 {[%emt 0:00:19]} h5 {[%emt 0:00:12]} 43. R1b6 {[%emt 0:03:19]} Re5 {[%emt 0:00:28]} 44. h4 {[%emt 0:01:00]} Kf7 {[%emt 0:00:31]} 45. Rc6 {[%emt 0:01:29]} Re2+ {[%emt 0:01:26]} 46. Kf3 {[%emt 0:05:23]} Re5 {[%emt 0:01:37]} 47. Rc4 {[%emt 0:01:53]} Ke6 {[%emt 0:12:38]} 48. Re4 {[%emt 0:01:20]} Bf6 {[%emt 0:04:24]} 49. Rf4 {[%emt 0:09:05]} Bd8 {[%emt 0:04:02]} 50. Rg7 {[%emt 0:05:55]} g5 {[%emt 0:00:10]} 51. Rg6+ {[%emt 0:00:08]} Kd5 {[%emt 0:00:20]} 52. Rf7 {[%emt 0:00:27]} g4+ {[%emt 0:02:11]} 53. Kf2 {[%emt 0:00:46]} Be7 {[%emt 0:00:54]} 54. Kg2 {[%emt 0:01:58]} Kc4 {[%emt 0:04:44]} 55. Rgg7 {[%emt 0:02:15]} Bd6 {[%emt 0:04:03]} 56. Rf4+ {[%emt 0:03:42]} Kc3 {[%emt 0:02:06]} 57. Rg5 {[%emt 0:02:09]} Re2+ {[%emt 0:03:13]} 58. Kf1 {[%emt 0:00:49]} Re3 {[%emt 0:01:03]} 59. Rxh5 {[%emt 0:00:06]} Bxf4 {[%emt 0:01:40]} 60. gxf4 {[%emt 0:00:01]} Kd4 {[%emt 0:00:37]} 61. Kg2 {[%emt 0:00:18]} Rh3 {[%emt 0:01:10]} 62. Re5 {[%emt 0:01:02]} Ra3 {[%emt 0:00:36]} 63. h5 {[%emt 0:00:07]} Rh3 {[%emt 0:00:04]} 64. Re1 {[%emt 0:01:15]} Rxh5 {[%emt 0:00:42]} 65. Kg3 {[%emt 0:00:01]} Rh8 {[%emt 0:00:16]} 66. Re5 {[%emt 0:00:26]} Rg8 {[%emt 0:00:21]} 67. Rg5 {[%emt 0:00:08]} Rf8 {[%emt 0:00:38]} 68. Kxg4 {[%emt 0:00:04]} Ke4 {[%emt 0:00:13]} 69. Re5+ {[%emt 0:00:02]} Kd4 {[%emt 0:00:04]} 70. Re6 {[%emt 0:01:04]} Rg8+ {[%emt 0:00:44]} 71. Kh5 {[%emt 0:00:08]} Rh8+ {[%emt 0:01:29]} 72. Kg5 {[%emt 0:00:03]} Kd5 {[%emt 0:00:32]} 73. f5 {[%emt 0:00:04]} Rh1 {[%emt 0:00:29]} 74. Re2 {[%emt 0:00:11]} Rg1+ {[%emt 0:00:31]} 75. Kf6 {[%emt 0:00:13]} Rh1 {[%emt 0:00:27]} 76. Kg6 {[%emt 0:00:05]} Rg1+ {[%emt 0:00:09]} 77. Kf7 {[%emt 0:00:03]} Kd6 {[%emt 0:00:16]} 78. f6 {[%emt 0:00:03]} Rf1 {[%emt 0:00:25]} 79. Kg7 {[%emt 0:00:02]} Rg1+ {[%emt 0:00:38]} 80. Kf8 {[%emt 0:00:04]} Kd7 {[%emt 0:00:47]} 81. f7 {[%emt 0:00:06]} Ra1 {[%emt 0:00:40]} 82. Rg2 {[%emt 0:00:18]} Rf1 {[%emt 0:00:34]} 83. Kg7 {[%emt 0:00:04]} Ke7 {[%emt 0:00:09]} 84. f8=Q+ {[%emt 0:00:07]} Rxf8 {[%emt 0:00:04]} 85. Re2+ {[%emt 0:00:01]} Kd6 {[%emt 0:00:06]} 86. Kxf8 {[%emt 0:00:03]} Kd5 {[%emt 0:00:03]} 87. Kf7 1-0

[Event "Budapest Chess Festival 2024"]
[Site "Budapest"]
[Date "2024.05.27"]
[Round "5.13"]
[White "Parkhov, Yair"]
[Black "Yaniv, Yuval"]
[Result "0-1"]
[ECO "E73"]
[WhiteElo "2510"]
[BlackElo "2337"]
[Annotator "RC"]
[PlyCount "186"]
[EventDate "2024.05.20"]
[EventType "swiss"]
[EventCountry "HUN"]
[SourceTitle "playchess.com"]
[Source "ChessBase"]
[SourceQuality "1"]
[TimeControl "40/5400+30:1800+30"]

1. d4 {[%emt 0:00:32]} Nf6 {[%emt 0:00:53]} 2. c4 {[%emt 0:00:04]} g6 {[%emt 0:00:27]} 3. Nc3 {[%emt 0:00:04]} Bg7 {[%emt 0:00:08]} 4. e4 {[%emt 0:00:04]} d6 {[%emt 0:00:10]} 5. Be2 {[%emt 0:00:03]} O-O {[%emt 0:00:06]} 6. Be3 {[%emt 0:00:03]} c5 {[%emt 0:00:20]} 7. d5 {[%emt 0:00:06]} e6 {[%emt 0:00:08]} 8. Nf3 {[%emt 0:00:16]} exd5 {[%emt 0:00:36]} 9. cxd5 {[%emt 0:01:33]} b5 {[%emt 0:00:08]} 10. e5 {[%emt 0:00:17]} dxe5 {[%emt 0:00:12]} 11. Bxc5 {[%emt 0:00:26]} Re8 {[%emt 0:00:25]} 12. Bxb5 {[%emt 0:00:14]} Nbd7 {[%emt 0:00:11]} 13. Be3 {[%emt 0:01:45]} Ng4 {[%emt 0:00:41]} 14. O-O {[%emt 0:04:56]} Nxe3 {[%emt 0:00:12]} 15. fxe3 {[%emt 0:00:03]} Rb8 {[%emt 0:00:10]} 16. Qd2 {[%emt 0:04:22]} Rf8 {[%emt 0:01:00]} 17. Bxd7 {[%emt 0:16:55]} Bxd7 {[%emt 0:00:54]} 18. Rac1 {[%emt 0:05:26]} Qb6 {[%emt 0:14:09]} 19. Ne4 {[%emt 0:06:21]} Bf5 {[%emt 0:21:23]} 20. Nc5 {[%emt 0:10:08]} Rfd8 {[%emt 0:02:47]} 21. Rc4 {[%emt 0:10:35]} e4 {[%emt 0:08:12]} 22. Nxe4 {[%emt 0:04:12]} Qxb2 {[%emt 0:00:43]} 23. Qxb2 {[%emt 0:01:24]} Rxb2 {[%emt 0:00:18]} 24. Nc5 {[%emt 0:08:11]} Bf8 {[%emt 0:05:22]} 25. Na4 {[%emt 0:01:13]} Rxa2 {[%emt 0:11:32]} 26. e4 {[%emt 0:00:32]} Rc8 {[%emt 0:00:46]} 27. Rxc8 {[%emt 0:02:41]} Bxc8 {[%emt 0:00:06]} 28. Rc1 {[%emt 0:01:28]} Bg4 {[%emt 0:05:53]} 29. Nc5 {[%emt 0:01:42]} a5 {[%emt 0:06:43]} 30. e5 {[%emt 0:04:26]} a4 {[%emt 0:02:14]} 31. Ne4 {[%emt 0:00:31]} Bf5 {[%emt 0:07:14]} 32. Nf6+ {[%emt 0:02:08]} Kg7 {[%emt 0:00:07]} 33. Nd4 {[%emt 0:05:23]} a3 {[%emt 0:01:47]} 34. Nxf5+ {[%emt 0:04:56]} gxf5 {[%emt 0:00:26]} 35. Nh5+ {[%emt 0:02:15]} Kh6 {[%emt 0:01:17]} 36. Ng3 {[%emt 0:00:05]} Kg5 {[%emt 0:02:03]} 37. Rc4 {[%emt 0:00:12]} f4 {[%emt 0:01:13]} 38. h4+ {[%emt 0:02:24]} Kg4 {[%emt 0:00:33]} 39. Nf1 {[%emt 0:00:04]} Kf5 {[%emt 0:03:58]} 40. Rc8 {[%emt 0:00:00]} Be7 {[%emt 0:00:00]} 41. d6 {[%emt 0:07:33]} Bxh4 {[%emt 0:04:50]} 42. d7 {[%emt 0:01:49]} Rb2 {[%emt 0:05:43]} 43. d8=Q {[%emt 0:03:30]} Bxd8 {[%emt 0:00:09]} 44. Rxd8 {[%emt 0:00:08]} a2 {[%emt 0:00:13]} 45. Ra8 {[%emt 0:00:05]} Kxe5 {[%emt 0:02:04]} 46. Ra4 {[%emt 0:04:29]} Kd6 {[%emt 0:04:54]} 47. Kh2 {[%emt 0:00:31]} Kc5 {[%emt 0:01:37]} 48. Kh3 {[%emt 0:00:53]} Kb5 {[%emt 0:01:55]} 49. Ra8 {[%emt 0:00:16]} Kb4 {[%emt 0:00:32]} 50. g3 {[%emt 0:03:18]} Rf2 {[%emt 0:06:20]} 51. Nh2 {[%emt 0:00:25]} Kb3 {[%emt 0:01:39]} 52. Ra7 {[%emt 0:04:18]} Kb2 {[%emt 0:01:22]} 53. Rb7+ {[%emt 0:00:39]} Kc2 {[%emt 0:01:10]} 54. Ra7 {[%emt 0:00:05]} Kb1 {[%emt 0:00:12]} 55. gxf4 {[%emt 0:00:05]} Rxf4 {[%emt 0:00:27]} 56. Kg3 {[%emt 0:00:05]} Rc4 {[%emt 0:00:43]} 57. Nf3 {[%emt 0:01:09]} Rc3 {[%emt 0:01:52]} 58. Kg4 {[%emt 0:02:57]} Rxf3 {[%emt 0:02:10]} 59. Kxf3 {[%emt 0:00:03]} a1=Q {[%emt 0:00:08]} 60. Rxf7 {[%emt 0:00:04]} Qe5 {[%emt 0:04:47]} 61. Kf2 {[%emt 0:01:24]} Kc2 {[%emt 0:00:34]} 62. Kg1 {[%emt 0:01:18]} Qg5+ {[%emt 0:00:28]} 63. Kf2 {[%emt 0:00:46]} Kd3 {[%emt 0:00:30]} 64. Rd7+ {[%emt 0:01:42]} Ke4 {[%emt 0:00:12]} 65. Rb7 {[%emt 0:00:17]} Qe3+ {[%emt 0:00:47]} 66. Kg2 {[%emt 0:00:16]} Qf3+ {[%emt 0:00:07]} 67. Kh2 {[%emt 0:00:24]} Qh5+ {[%emt 0:00:14]} 68. Kg3 {[%emt 0:00:33]} Qg5+ {[%emt 0:00:19]} 69. Kf2 {[%emt 0:00:22]} Qf6+ {[%emt 0:00:40]} 70. Kg3 {[%emt 0:00:17]} Qd6+ {[%emt 0:00:11]} 71. Kh3 {[%emt 0:01:16]} h6 {[%emt 0:00:46]} 72. Kg4 {[%emt 0:01:37]} Qg6+ {[%emt 0:00:08]} 73. Kh3 {[%emt 0:00:07]} Qh5+ {[%emt 0:00:27]} 74. Kg3 {[%emt 0:00:16]} Qe5+ {[%emt 0:00:12]} 75. Kh3 {[%emt 0:00:16]} Kf5 {[%emt 0:00:18]} 76. Rf7+ {[%emt 0:00:08]} Kg5 {[%emt 0:00:14]} 77. Rf3 {[%emt 0:00:21]} Qe6+ {[%emt 0:00:14]} 78. Kg2 {[%emt 0:00:06]} h5 {[%emt 0:00:35]} 79. Rg3+ {[%emt 0:00:07]} Kh4 {[%emt 0:00:11]} 80. Rf3 {[%emt 0:01:02]} Qe2+ {[%emt 0:00:18]} 81. Rf2 {[%emt 0:00:04]} Qe4+ {[%emt 0:00:21]} 82. Kh2 {[%emt 0:00:10]} Qe3 {[%emt 0:01:40]} 83. Kh1 {[%emt 0:00:51]} Qe1+ {[%emt 0:00:17]} 84. Kg2 {[%emt 0:00:06]} Kg4 {[%emt 0:00:09]} 85. Rf8 {[%emt 0:01:36]} Qe4+ {[%emt 0:00:13]} 86. Kf1 {[%emt 0:00:13]} Qc4+ {[%emt 0:00:16]} 87. Kg2 {[%emt 0:00:11]} Qd5+ {[%emt 0:00:12]} 88. Kf1 {[%emt 0:00:07]} Qh1+ {[%emt 0:00:09]} 89. Kf2 {[%emt 0:00:16]} h4 {[%emt 0:00:38]} 90. Rg8+ {[%emt 0:00:18]} Kh3 {[%emt 0:00:17]} 91. Rg7 {[%emt 0:01:26]} Qh2+ {[%emt 0:00:06]} 92. Kf3 {[%emt 0:00:05]} Qg3+ {[%emt 0:01:11]} 93. Rxg3+ {[%emt 0:00:06]} hxg3 {[%emt 0:00:02]} 0-1

[Event "Budapest Chess Festival 2024"]
[Site "Budapest"]
[Date "2024.05.27"]
[Round "5.14"]
[White "Pribelszky, Bence"]
[Black "Popovic, Dusan"]
[Result "0-1"]
[ECO "A05"]
[WhiteElo "2363"]
[BlackElo "2486"]
[Annotator "RC"]
[PlyCount "66"]
[EventDate "2024.05.20"]
[EventType "swiss"]
[EventCountry "HUN"]
[SourceTitle "playchess.com"]
[Source "ChessBase"]
[SourceQuality "1"]
[TimeControl "40/5400+30:1800+30"]

1. Nf3 {[%emt 0:00:34]} Nf6 {[%emt 0:01:07]} 2. g3 {[%emt 0:00:09]} g6 {[%emt 0:00:06]} 3. b3 {[%emt 0:00:05]} Bg7 {[%emt 0:00:24]} 4. Bb2 {[%emt 0:00:06]} O-O {[%emt 0:00:08]} 5. Bg2 {[%emt 0:00:05]} d6 {[%emt 0:00:34]} 6. d4 {[%emt 0:00:06]} a5 {[%emt 0:01:23]} 7. O-O {[%emt 0:02:06]} a4 {[%emt 0:00:06]} 8. c4 {[%emt 0:00:08]} c6 {[%emt 0:00:23]} 9. Nc3 {[%emt 0:07:13]} a3 {[%emt 0:07:01]} 10. Bc1 {[%emt 0:00:11]} c5 {[%emt 0:00:18]} 11. Nb5 {[%emt 0:22:58]} Nc6 {[%emt 0:08:49]} 12. e3 {[%emt 0:06:46]} Nb4 {[%emt 0:11:57]} 13. Bxa3 {[%emt 0:03:18]} Bd7 {[%emt 0:08:49]} 14. dxc5 {[%emt 0:29:31]} dxc5 {[%emt 0:01:46]} 15. Bxb4 {[%emt 0:00:06]} cxb4 {[%emt 0:00:11]} 16. Nfd4 {[%emt 0:00:16]} Qb6 {[%emt 0:08:50]} 17. Qd2 {[%emt 0:01:18]} Qc5 {[%emt 0:02:02]} 18. Rfc1 {[%emt 0:14:31]} Rad8 {[%emt 0:10:59]} 19. Qe1 {[%emt 0:00:06]} Bc6 {[%emt 0:01:17]} 20. Nxc6 {[%emt 0:00:30]} bxc6 {[%emt 0:00:30]} 21. Nd4 {[%emt 0:00:30]} Ng4 {[%emt 0:00:30]} 22. h3 Nxf2 {[%emt 0:06:46]} 23. Kxf2 {[%emt 0:09:48]} Rxd4 {[%emt 0:00:05]} 24. exd4 {[%emt 0:00:38]} Bxd4+ {[%emt 0:00:07]} 25. Ke2 {[%emt 0:01:12]} Rd8 {[%emt 0:05:11]} 26. Bf3 {[%emt 0:00:45]} Qf5 {[%emt 0:00:52]} 27. Rd1 {[%emt 0:00:29]} Qe6+ {[%emt 0:00:52]} 28. Kf1 {[%emt 0:00:16]} Qxh3+ {[%emt 0:00:13]} 29. Ke2 {[%emt 0:00:47]} Qh2+ {[%emt 0:00:18]} 30. Kd3 {[%emt 0:00:31]} Bf2+ {[%emt 0:02:01]} 31. Ke4 {[%emt 0:00:13]} f5+ {[%emt 0:00:08]} 32. Ke5 {[%emt 0:00:09]} Kf7 {[%emt 0:03:28]} 33. Rxd8 {[%emt 0:01:07]} Qxg3# 0-1

[Event "Budapest Chess Festival 2024"]
[Site "Budapest"]
[Date "2024.05.27"]
[Round "5.15"]
[White "Haring, Filip"]
[Black "Jeet, Jain"]
[Result "1/2-1/2"]
[ECO "B52"]
[WhiteElo "2484"]
[BlackElo "2332"]
[Annotator "TA"]
[PlyCount "20"]
[EventDate "2024.05.20"]
[EventType "swiss"]
[EventCountry "HUN"]
[SourceTitle "playchess.com"]
[Source "ChessBase"]
[SourceQuality "1"]
[TimeControl "40/5400+30:1800+30"]

{[%evp 15,20,0,0,0,0,6,21]} 1. e4 {[%emt 0:00:45]} c5 {[%emt 0:00:49]} 2. Nf3 {[%emt 0:00:11]} d6 {[%emt 0:00:07]} 3. Bb5+ {[%emt 0:01:07]} Bd7 {[%emt 0:00:08]} 4. c4 {[%emt 0:00:41]} Nf6 {[%emt 0:00:09]} 5. Nc3 {[%emt 0:00:12]} g6 {[%emt 0:00:24]} 6. O-O {[%emt 0:01:46]} Bg7 {[%emt 0:01:02]} 7. Bxd7+ {[%emt 0:07:08]} Nbxd7 {[%emt 0:00:14]} 8. d4 {[%emt 0:07:02]} cxd4 {[%emt 0:00:09] The position is equal.} 9. Nxd4 {[%emt 0:00:50]} Qa5 {[%emt 0:05:04]} 10. Qe2 {[%emt 0:14:46]} Rc8 {[%emt 0:03:11] A rather calm draw.   OK:         	---       	Black=2} 1/2-1/2

[Event "Budapest Chess Festival 2024"]
[Site "Budapest"]
[Date "2024.05.27"]
[Round "5.16"]
[White "Moksh Amit Doshi"]
[Black "Csonka, Balazs"]
[Result "1/2-1/2"]
[ECO "E06"]
[WhiteElo "2359"]
[BlackElo "2480"]
[Annotator "RC"]
[PlyCount "37"]
[EventDate "2024.05.20"]
[EventType "swiss"]
[EventCountry "HUN"]
[SourceTitle "playchess.com"]
[Source "ChessBase"]
[SourceQuality "1"]
[TimeControl "40/5400+30:1800+30"]

1. d4 {[%emt 0:01:33]} d5 {[%emt 0:00:38]} 2. c4 {[%emt 0:00:06]} e6 {[%emt 0:00:05]} 3. Nf3 {[%emt 0:01:26]} Nf6 {[%emt 0:00:09]} 4. g3 {[%emt 0:00:06]} Be7 {[%emt 0:00:55]} 5. Bg2 {[%emt 0:00:16]} O-O {[%emt 0:00:10]} 6. O-O {[%emt 0:00:06]} dxc4 {[%emt 0:00:19]} 7. Qc2 {[%emt 0:00:06]} b5 {[%emt 0:00:38]} 8. a4 {[%emt 0:00:38]} b4 {[%emt 0:00:13]} 9. Nfd2 {[%emt 0:05:47]} Nd5 {[%emt 0:00:46]} 10. Nxc4 {[%emt 0:00:06]} c5 {[%emt 0:00:12]} 11. dxc5 {[%emt 0:00:06]} Bxc5 {[%emt 0:00:27]} 12. Rd1 {[%emt 0:08:28]} Nd7 {[%emt 0:01:34]} 13. e4 {[%emt 0:00:29]} N5b6 {[%emt 0:00:47]} 14. Nxb6 {[%emt 0:07:11]} axb6 {[%emt 0:15:58]} 15. Nd2 {[%emt 0:06:04]} Ba6 {[%emt 0:14:28]} 16. Nb3 {[%emt 0:03:40]} Be7 {[%emt 0:07:11]} 17. Bf4 {[%emt 0:11:37]} Rc8 {[%emt 0:01:14]} 18. Qd2 {[%emt 0:00:32]} Bc4 {[%emt 0:37:21]} 19. Qxd7 {[%emt 0:29:04]} 1/2-1/2

[Event "Budapest Chess Festival 2024"]
[Site "Budapest"]
[Date "2024.05.27"]
[Round "5.17"]
[White "Stefansson, Vignir Vatnar"]
[Black "Mouhamad, Joachim"]
[Result "1-0"]
[ECO "E07"]
[WhiteElo "2463"]
[BlackElo "2312"]
[Annotator "RC"]
[PlyCount "89"]
[EventDate "2024.05.20"]
[EventType "swiss"]
[EventCountry "HUN"]
[SourceTitle "playchess.com"]
[Source "ChessBase"]
[SourceQuality "1"]
[TimeControl "40/5400+30:1800+30"]

1. d4 {[%emt 0:03:24]} d5 {[%emt 0:02:09]} 2. c4 {[%emt 0:00:07]} e6 {[%emt 0:00:06]} 3. Nf3 {[%emt 0:00:27]} Nf6 {[%emt 0:00:21]} 4. g3 {[%emt 0:00:08]} Be7 {[%emt 0:00:42]} 5. Bg2 {[%emt 0:00:07]} O-O {[%emt 0:00:25]} 6. Nc3 {[%emt 0:00:41]} c6 {[%emt 0:01:04]} 7. O-O {[%emt 0:00:23]} Nbd7 {[%emt 0:01:25]} 8. Qd3 {[%emt 0:03:16]} b6 {[%emt 0:01:55]} 9. e4 {[%emt 0:00:09]} Ba6 {[%emt 0:03:15]} 10. b3 {[%emt 0:00:13]} dxc4 {[%emt 0:01:53]} 11. bxc4 {[%emt 0:00:06]} e5 {[%emt 0:00:19]} 12. Rd1 {[%emt 0:05:56]} Qc7 {[%emt 0:18:26]} 13. Qe2 {[%emt 0:17:10]} Bb4 {[%emt 0:06:32]} 14. Bd2 {[%emt 0:03:24]} Bd6 {[%emt 0:16:10]} 15. Rac1 {[%emt 0:02:06]} Ba3 {[%emt 0:00:09]} 16. Rc2 {[%emt 0:02:12]} Rfe8 {[%emt 0:04:46]} 17. Bg5 {[%emt 0:12:33]} exd4 {[%emt 0:00:39]} 18. Nxd4 {[%emt 0:00:41]} Bc5 {[%emt 0:05:47]} 19. Nf5 {[%emt 0:05:29]} h6 {[%emt 0:05:30]} 20. Bh4 {[%emt 0:10:11]} Qe5 {[%emt 0:04:08]} 21. Bh3 {[%emt 0:07:20]} Nf8 {[%emt 0:03:28]} 22. Na4 {[%emt 0:02:01]} Bb4 {[%emt 0:06:48]} 23. a3 {[%emt 0:09:02]} Bxa3 {[%emt 0:01:41]} 24. Qf3 {[%emt 0:00:04]} Qxe4 {[%emt 0:03:11]} 25. Qc3 {[%emt 0:02:32]} Bb4 {[%emt 0:00:59]} 26. Qb2 {[%emt 0:00:59]} N8h7 {[%emt 0:03:04]} 27. Nc3 {[%emt 0:01:31]} Bxc3 {[%emt 0:01:37]} 28. Rxc3 {[%emt 0:02:11]} Qe5 {[%emt 0:00:26]} 29. Qc1 {[%emt 0:01:02]} Qe2 {[%emt 0:06:23]} 30. Bg2 {[%emt 0:02:55]} Rad8 {[%emt 0:00:33]} 31. Nd4 {[%emt 0:03:32]} Rxd4 {[%emt 0:01:14]} 32. Rxd4 {[%emt 0:00:04]} Qe1+ {[%emt 0:00:08]} 33. Qxe1 {[%emt 0:00:03]} Rxe1+ {[%emt 0:00:04]} 34. Bf1 {[%emt 0:00:01]} g5 {[%emt 0:00:59]} 35. Ra3 {[%emt 0:00:29]} gxh4 {[%emt 0:00:49]} 36. Rxa6 {[%emt 0:00:23]} Ng5 {[%emt 0:00:14]} 37. Ra3 {[%emt 0:00:57]} h3 {[%emt 0:00:33]} 38. f3 {[%emt 0:00:22]} b5 {[%emt 0:00:35]} 39. cxb5 {[%emt 0:01:01]} cxb5 {[%emt 0:00:01]} 40. Kf2 {[%emt 0:00:00]} Rb1 {[%emt 0:00:00]} 41. Rdd3 {[%emt 0:03:44]} Rb2+ {[%emt 0:07:03]} 42. Kg1 {[%emt 0:02:25]} b4 {[%emt 0:02:50]} 43. Rxa7 {[%emt 0:00:59]} Kg7 {[%emt 0:09:31]} 44. Ra5 {[%emt 0:02:46]} Rd2 {[%emt 0:01:11]} 45. Rxg5+ {[%emt 0:00:15]} 1-0

[Event "Budapest Chess Festival 2024"]
[Site "Budapest"]
[Date "2024.05.27"]
[Round "5.18"]
[White "Cabarkapa, Novak"]
[Black "Krishnan, Ritvik"]
[Result "1-0"]
[ECO "A21"]
[WhiteElo "2444"]
[BlackElo "2298"]
[Annotator "RC"]
[PlyCount "107"]
[EventDate "2024.05.20"]
[EventType "swiss"]
[EventCountry "HUN"]
[SourceTitle "playchess.com"]
[Source "ChessBase"]
[SourceQuality "1"]
[TimeControl "40/5400+30:1800+30"]

1. c4 {[%emt 0:00:41]} e5 {[%emt 0:00:34]} 2. Nc3 {[%emt 0:00:24]} Bb4 {[%emt 0:00:07]} 3. Qc2 {[%emt 0:02:29]} Nf6 {[%emt 0:05:22]} 4. Nf3 {[%emt 0:06:11]} Bxc3 {[%emt 0:01:13]} 5. Qxc3 {[%emt 0:05:27]} e4 {[%emt 0:01:00]} 6. Nd4 {[%emt 0:01:01]} O-O {[%emt 0:02:49]} 7. b4 {[%emt 0:02:24]} d5 {[%emt 0:05:59]} 8. c5 {[%emt 0:08:15]} Re8 {[%emt 0:04:50]} 9. Bb2 {[%emt 0:13:16]} Nbd7 {[%emt 0:06:13]} 10. e3 {[%emt 0:06:16]} a5 11. b5 {[%emt 0:09:36]} Qe7 {[%emt 0:13:49]} 12. c6 {[%emt 0:06:37]} Ne5 {[%emt 0:07:30]} 13. Ba3 {[%emt 0:00:07]} Qd8 {[%emt 0:01:06]} 14. b6 {[%emt 0:00:52]} bxc6 {[%emt 0:09:10]} 15. Nxc6 {[%emt 0:01:59]} Nxc6 {[%emt 0:00:02]} 16. Qxc6 {[%emt 0:00:20]} Bd7 {[%emt 0:00:10]} 17. bxc7 {[%emt 0:04:19]} Qc8 {[%emt 0:06:36]} 18. Qc5 {[%emt 0:05:47]} Re6 {[%emt 0:00:41]} 19. Bb2 {[%emt 0:03:56]} Rc6 {[%emt 0:01:12]} 20. Qd4 {[%emt 0:00:08]} Qxc7 {[%emt 0:02:28]} 21. Bb5 {[%emt 0:06:05]} Rb6 {[%emt 0:02:10]} 22. Bxd7 {[%emt 0:03:35]} Rb4 {[%emt 0:01:06]} 23. Qe5 {[%emt 0:00:26]} Qxd7 {[%emt 0:07:08]} 24. Bc3 {[%emt 0:00:46]} Rc4 {[%emt 0:02:00]} 25. O-O {[%emt 0:01:02]} a4 {[%emt 0:01:29]} 26. Rab1 {[%emt 0:00:36]} h6 {[%emt 0:00:35]} 27. Rb6 {[%emt 0:03:14]} Rc6 {[%emt 0:00:43]} 28. Rfb1 {[%emt 0:01:11]} Rac8 {[%emt 0:00:32]} 29. h3 {[%emt 0:01:01]} Rxb6 {[%emt 0:01:29]} 30. Rxb6 {[%emt 0:00:06]} Rc6 {[%emt 0:00:05]} 31. Qb8+ {[%emt 0:02:02]} Kh7 {[%emt 0:01:19]} 32. Rb7 {[%emt 0:01:25]} Qe6 {[%emt 0:00:13]} 33. Qf8 {[%emt 0:00:59]} Kg6 {[%emt 0:04:51]} 34. Re7 {[%emt 0:00:06]} Rc8 {[%emt 0:00:35]} 35. Rxe6 {[%emt 0:00:09]} Rxf8 {[%emt 0:00:03]} 36. Ra6 {[%emt 0:01:35]} Rb8 {[%emt 0:00:14]} 37. Kf1 {[%emt 0:02:10]} Rb1+ {[%emt 0:00:37]} 38. Ke2 {[%emt 0:00:04]} Rg1 {[%emt 0:00:33]} 39. Rxa4 {[%emt 0:01:47]} Rxg2 {[%emt 0:00:26]} 40. Rd4 {[%emt 0:00:00]} Rg1 {[%emt 0:00:00]} 41. a4 {[%emt 0:02:11]} Rb1 {[%emt 0:06:35]} 42. a5 {[%emt 0:00:18]} Rb8 {[%emt 0:00:23]} 43. a6 {[%emt 0:01:10]} Ra8 {[%emt 0:00:28]} 44. Ra4 {[%emt 0:00:06]} Nd7 {[%emt 0:00:32]} 45. a7 {[%emt 0:05:03]} f6 {[%emt 0:02:27]} 46. Bd4 {[%emt 0:04:42]} Kf7 {[%emt 0:00:46]} 47. h4 {[%emt 0:01:21]} Ke7 {[%emt 0:02:49]} 48. h5 {[%emt 0:04:24]} Kd6 {[%emt 0:04:36]} 49. f3 {[%emt 0:01:25]} Ke6 {[%emt 0:03:32]} 50. Ra6+ {[%emt 0:01:53]} Ke7 {[%emt 0:00:24]} 51. Kf2 {[%emt 0:01:08]} exf3 {[%emt 0:01:14]} 52. Kxf3 {[%emt 0:00:07]} Ne5+ {[%emt 0:00:43]} 53. Bxe5 {[%emt 0:00:20]} fxe5 {[%emt 0:00:01]} 54. Kg4 {[%emt 0:00:25]} 1-0